﻿Department family,Entity,Date,Expense type,Expense area,Supplier,Transaction number,Amount,VAT registration number
Dept of Health,MHRA,01/09/2021,Application Services and Maintenance,"Technology, Digital, Data & Delivery",Accenture (UK) Limited,3003516986,"79,568.40",788629066
Dept of Health,MHRA,01/09/2021,Application Services and Maintenance,"Technology, Digital, Data & Delivery",Accenture (UK) Limited,3003516988,"106,438.27",788629066
Dept of Health,MHRA,01/09/2021,Application Services and Maintenance,"Technology, Digital, Data & Delivery",Accenture (UK) Limited,3003516991,"175,499.17",788629066
Dept of Health,MHRA,01/09/2021,Software & Licences,"Technology, Digital, Data & Delivery",Bestoutcome Ltd,INV-5575,"38,829.60",727373422
Dept of Health,MHRA,01/09/2021,"Service, Integration & Management - Enterprise Architecture","Technology, Digital, Data & Delivery",Ernst & Young LLP,GB01G000213920,"54,048.00",773831408
Dept of Health,MHRA,01/09/2021,"Service, Integration & Management - Enterprise Architecture","Technology, Digital, Data & Delivery",Ernst & Young LLP,GB01G000213925,"56,522.34",773831408
Dept of Health,MHRA,01/09/2021,Lab Equipment Repairs and Maintenance,Standards Processing,Freeze Drying Services,4761,"49,438.08",528787102
Dept of Health,MHRA,01/09/2021,Accommodation Rates,Infrastructure & Operations,Hertsmere Borough Council,Business Rates Bill: 2021/2022,"834,456.00",230640406
Dept of Health,MHRA,01/09/2021,Infrastructure Services and Maintenance,"Technology, Digital, Data & Delivery",NTT Data UK Ltd,4019404,"147,596.90",159334590
Dept of Health,MHRA,01/09/2021,Infrastructure Services and Maintenance,"Technology, Digital, Data & Delivery",NTT Data UK Ltd,4019405,"38,300.00",159334590
Dept of Health,MHRA,01/09/2021,Infrastructure Services and Maintenance,"Technology, Digital, Data & Delivery",NTT Data UK Ltd,4019406,"39,181.90",159334590
Dept of Health,MHRA,01/09/2021,Infrastructure Services and Maintenance,"Technology, Digital, Data & Delivery",NTT Data UK Ltd,5022191,"29,959.20",159334590
Dept of Health,MHRA,01/09/2021,Contracted Out Services Miscellaneous,"Technology, Digital, Data & Delivery",Red Ant Digital Ltd,INV-08683,"97,500.00",123388322
Dept of Health,MHRA,01/09/2021,Contracted Out Services Miscellaneous,Vigilance & Risk Management of Medicines,Red Ant Digital Ltd,INV-08690,"33,600.00",123388322
Dept of Health,MHRA,02/09/2021,Contracted Out Services Miscellaneous,Vigilance & Risk Management of Medicines,Commonwealth Informatics Inc,GBP88,"33,564.38",
Dept of Health,MHRA,02/09/2021,Application Services and Maintenance,"Technology, Digital, Data & Delivery",Insife ApS,321,"30,000.00",
Dept of Health,MHRA,06/09/2021,Security,Infrastructure & Operations,CIS Security Limited,44981,"52,816.88",206193092
Dept of Health,MHRA,06/09/2021,Contracted Out Services Miscellaneous,Transformation,Ernst & Young LLP,GB01G000224269,"369,852.00",773831408
Dept of Health,MHRA,06/09/2021,Application Services and Maintenance,"Technology, Digital, Data & Delivery",Insife ApS,320,"244,040.33",
Dept of Health,MHRA,06/09/2021,Application Services and Maintenance,"Technology, Digital, Data & Delivery",Insife ApS,327,"244,040.33",
Dept of Health,MHRA,06/09/2021,Help desk and end user support,"Technology, Digital, Data & Delivery",Insight Networking Solutions,5427341,"65,202.02",746075129
Dept of Health,MHRA,06/09/2021,Help desk and end user support,"Technology, Digital, Data & Delivery",Insight Networking Solutions,5427366,"65,202.02",746075129
Dept of Health,MHRA,06/09/2021,Help desk and end user support,"Technology, Digital, Data & Delivery",Insight Networking Solutions,5427483,"65,202.02",746075129
Dept of Health,MHRA,06/09/2021,Contracted Out Services Miscellaneous,Communications,NLA Media Access,Q468141,"57,143.98",661865215
Dept of Health,MHRA,06/09/2021,Software & Licences,"Technology, Digital, Data & Delivery",Open Text UK Ltd.,9002666440,"28,800.00",834871308
Dept of Health,MHRA,06/09/2021,Assets Under Construction - Plant & Equipment,Infrastructure & Operations,Roche Diagnostics Limited,6571436690,"120,000.00",684424418
Dept of Health,MHRA,06/09/2021,Infrastructure Services and Maintenance,"Technology, Digital, Data & Delivery",Storm Technologies Ltd,806850,"110,400.00",760609235
Dept of Health,MHRA,06/09/2021,Infrastructure Services and Maintenance,"Technology, Digital, Data & Delivery",Storm Technologies Ltd,806949,"96,000.00",760609235
Dept of Health,MHRA,08/09/2021,Chemicals and Reagents,Infectious Disease Diagnostics,Bio-Techne Ltd,OP/I676080,"25,708.80",630531673
Dept of Health,MHRA,08/09/2021,IT Database Subscriptions,Vigilance & Risk Management of Medicines,IQVIA Ltd,4124621451,"68,828.40",450315485
Dept of Health,MHRA,08/09/2021,Contracted Out Services Miscellaneous,"Technology, Digital, Data & Delivery",Redrock Consulting Ltd,9914,"30,491.48",862247715
Dept of Health,MHRA,08/09/2021,"Service, Integration & Management (SIAM)","Technology, Digital, Data & Delivery",Redrock Consulting Ltd,10113,"62,040.48",862247715
Dept of Health,MHRA,13/09/2021,Software & Licences,"Technology, Digital, Data & Delivery",Oracle Corporation UK Limited,460007124,"99,241.38",391313073
Dept of Health,MHRA,14/09/2021,Contracted Out Services Miscellaneous,Vigilance & Risk Management of Medicines,Commonwealth Informatics Inc,GBP89,"49,055.63",
Dept of Health,MHRA,15/09/2021,Software & Licences,"Technology, Digital, Data & Delivery",Microsoft Ltd,9899214705,"65,905.20",724594615
Dept of Health,MHRA,20/09/2021,Application Services and Maintenance,"Technology, Digital, Data & Delivery",Accenture (UK) Limited,3003518655,"26,500.01",788629066
Dept of Health,MHRA,20/09/2021,Application Services and Maintenance,"Technology, Digital, Data & Delivery",Accenture (UK) Limited,3003518658,"350,734.07",788629066
Dept of Health,MHRA,20/09/2021,Contracted Out Services Miscellaneous,Transformation,Ernst & Young LLP,GB01G000224260,"369,852.00",773831408
Dept of Health,MHRA,22/09/2021,Contracted Out Services Miscellaneous,Transformation,Ernst & Young LLP,GB01G000227786,"158,370.00",773831408
Dept of Health,MHRA,22/09/2021,IT Consultancy,"Technology, Digital, Data & Delivery",Ingenica Solutions Ltd,PSI1941,"44,119.68",152777979
Dept of Health,MHRA,22/09/2021,Infrastructure Services and Maintenance,"Technology, Digital, Data & Delivery",Sungard Availability Services (UK) Limited,21003223,"53,999.99",823829709
Dept of Health,MHRA,27/09/2021,Application Services and Maintenance,"Technology, Digital, Data & Delivery",Accenture (UK) Limited,3003519064,"88,436.00",788629066
Dept of Health,MHRA,27/09/2021,Application Services and Maintenance,"Technology, Digital, Data & Delivery",Accenture (UK) Limited,3003519070,"67,924.24",788629066
Dept of Health,MHRA,27/09/2021,Application Services and Maintenance,"Technology, Digital, Data & Delivery",Accenture (UK) Limited,3003519072,"167,928.47",788629066
Dept of Health,MHRA,27/09/2021,Application Services and Maintenance,"Technology, Digital, Data & Delivery",Accenture (UK) Limited,3003519076,"91,530.05",788629066
Dept of Health,MHRA,27/09/2021,Assets Under Construction - Plant & Equipment,Infrastructure & Operations,Leica Microsystems (UK) Ltd.,98603105,"47,700.12",290756238
Dept of Health,MHRA,27/09/2021,Assets Under Construction - Plant & Equipment,Infrastructure & Operations,Merrow Scientific Ltd,IN210504,"50,856.00",831510760
Dept of Health,MHRA,27/09/2021,Contracted Out Services Miscellaneous,Vigilance & Risk Management of Medicines,Red Ant Digital Ltd,INV-08723,"42,840.00",123388322
Dept of Health,MHRA,27/09/2021,Debt Collection Services,Finance & Procurement,Wilkin Chapman LLP,DR30115,"27,886.73",127942455
Dept of Health,MHRA,28/09/2021,Gas,Infrastructure & Operations,Corona Energy Retail 4 Ltd,16322564,"29,771.65",577704800
Dept of Health,MHRA,28/09/2021,Electricity,Infrastructure & Operations,EDF Energy,10494606,"93,291.62",523041202
Dept of Health,MHRA,29/09/2021,Lab Equipment Repairs and Maintenance,Infrastructure & Operations,Beckman Coulter United Kingdom Ltd,4027519,"34,053.60",918561309
Dept of Health,MHRA,29/09/2021,Contracted Out Services Miscellaneous,"Technology, Digital, Data & Delivery",Credera Limited,INV006657,"165,489.76",283541886
